lending/lending_fUSD_20250409
["ID","MTS","AMOUNT","RATE_DAILY","PERIOD"]
[357569226,1744181363515,-547.04950245,0.00049999,120]
[357569227,1744181363555,-547.04950245,0.00049999,120]
[357569228,1744181363596,-547.04950245,0.00049999,120]
[357569229,1744181363636,-547.04950245,0.00049999,120]
[357569230,1744181363674,-285.88333572,0.00049999,120]
[357569231,1744181363715,-547.04950245,0.00049999,120]
[357569232,1744181363753,-229.97024871,0.00049999,120]
[357569233,1744181363792,-324.14288899,0.00049999,120]
[357569234,1744181363831,-547.04950245,0.00049999,120]
[357569235,1744181363871,-547.04950245,0.00049999,120]
[357569236,1744181363912,-547.04950245,0.00049999,120]
[357569237,1744181363952,-547.04950245,0.00049999,120]
[357569238,1744181363992,-547.04950245,0.00049999,120]
[357569239,1744181364033,-547.04950245,0.00049999,120]
[357569240,1744181364073,-500.0,0.00049999,120]
[357569241,1744181364115,-547.04950245,0.00049999,120]
[357569242,1744181364156,-634.29105435,0.00049999,120]
[357569243,1744181364198,-547.04950245,0.00049999,120]
[357569244,1744181364238,-547.04950245,0.00049999,120]
[357569245,1744181364277,-547.04950245,0.00049999,120]
[357569246,1744181364317,-500.0,0.00049999,120]
[357569247,1744181364358,-547.04950245,0.00049999,120]
[357569248,1744181364403,-547.04950245,0.00049999,120]
[357569249,1744181364442,-547.04950245,0.00049999,120]
[357569250,1744181364483,-547.04950245,0.00049999,120]
[357569251,1744181364525,-547.04950245,0.00049999,120]
[357569252,1744181364569,-547.04950245,0.00049999,120]
[357569253,1744181364610,-547.04950245,0.00049999,120]
[357569254,1744181364651,-547.04950245,0.00049999,120]
[357569255,1744181364691,-547.04950245,0.00049999,120]
[357569256,1744181364729,-547.04950245,0.00049999,120]
[357569257,1744181364769,-500.0,0.00049999,120]
[357569258,1744181364809,-547.04950245,0.00049999,120]
[357569259,1744181364849,-500.0,0.00049999,120]
[357569260,1744181364890,-500.0,0.00049999,120]
[357569261,1744181365191,-545.39177669,0.00049999,120]
[357569262,1744181365234,-545.39177669,0.00049999,120]
[357569263,1744181365272,-545.39177669,0.00049999,120]
[357569264,1744181365309,-545.39177669,0.00049999,120]
[357569265,1744181365348,-545.39177669,0.00049999,120]
[357569266,1744181365386,-545.39177669,0.00049999,120]
[357569267,1744181365424,-545.39177669,0.00049999,120]
[357569268,1744181365462,-545.39177669,0.00049999,120]
[357569269,1744181365498,-545.39177669,0.00049999,120]
[357569270,1744181365537,-545.39177669,0.00049999,120]
[357569271,1744181365575,-545.39177669,0.00049999,120]
[357569272,1744181365612,-545.39177669,0.00049999,120]
[357569273,1744181365649,-545.39177669,0.00049999,120]
[357569274,1744181365686,-545.39177669,0.00049999,120]
[357569275,1744181365722,-545.39177669,0.00049999,120]
[357569276,1744181365759,-545.39177669,0.00049999,120]
[357569277,1744181365799,-545.39177669,0.00049999,120]
[357569278,1744181365846,-545.39177669,0.00049999,120]
[357569279,1744181365893,-500.0,0.00049999,120]
[357569280,1744181365934,-545.39177669,0.00049999,120]
[357569281,1744181365974,-545.39177669,0.00049999,120]
[357569282,1744181366015,-545.39177669,0.00049999,120]
[357569283,1744181366056,-545.39177669,0.00049999,120]
[357569284,1744181366101,-500.0,0.00049999,120]
[357569285,1744181366141,-500.0,0.00049999,120]
[357569286,1744181366183,-551.66927162,0.00049999,120]
[357569287,1744181366220,-510.65551472,0.00049999,120]
[357569288,1744181366258,-510.65551472,0.00049999,120]
[357569289,1744181366297,-510.65551472,0.00049999,120]
[357569290,1744181366335,-510.65551472,0.00049999,120]
[357569291,1744181366375,-510.65551472,0.00049999,120]
[357569292,1744181366413,-510.65551472,0.00049999,120]
[357569293,1744181366453,-510.65551472,0.00049999,120]
[357569294,1744181366493,-510.65551472,0.00049999,120]
[357569295,1744181366532,-510.65551472,0.00049999,120]
[357569296,1744181366571,-510.65551472,0.00049999,120]
[357569297,1744181366610,-510.65551472,0.00049999,120]
[357569298,1744181366648,-300.0,0.00049999,120]
[357569299,1744181366687,-500.0,0.00049999,120]
[357569300,1744181366731,-510.65551467,0.00049999,120]
[357569301,1744181366770,-300.0,0.00049999,120]
[357569302,1744181366807,-800.0,0.0005,120]
[357569303,1744181366845,-500.0,0.0005,120]
[357569304,1744181366882,-500.0,0.0005,120]
[357569305,1744181366919,-1800.0,0.0005,51]
[357569306,1744181366957,-1000.0,0.0005,120]
[357569307,1744181366993,-1000.0,0.0005,120]
[357569308,1744181367033,-1000.0,0.0005,120]
[357569309,1744181367073,-300.0,0.0005,120]
[357569310,1744181367113,-5567.0,0.0005,120]
[357569311,1744181367149,-3545.14,0.0005,120]
[357569312,1744181367186,-689.0,0.0005,120]
[357569313,1744181367223,-607.52,0.0005,120]
[357569314,1744181367259,-275.69484652,0.0005,120]
[357569315,1744181367294,-98836.0,0.0005,120]
[357569316,1744181367328,-11987.0,0.0005,120]
[357569317,1744181367364,-206.0,0.0005,120]
[357569318,1744181367400,-385.16,0.0005,120]
[357569319,1744181367439,-332.19348801,0.0005,51]
[357569320,1744181367477,-84897.67814929,0.0005,120]
[357569321,1744181380739,-196.98271075,0.0004932,120]
[357569322,1744181380775,-196.98,0.0004932,120]
[357569323,1744181380810,-153.20877503,0.0004932,120]
[357569324,1744181380848,-153.20877503,0.0004932,120]
[357569325,1744181380885,-153.20877503,0.0004932,120]
[357569326,1744181380922,-153.20877503,0.0004932,120]
[357569327,1744181380958,-153.20877503,0.0004932,120]
[357569328,1744181380995,-153.20877503,0.0004932,120]
[357569329,1744181381034,-153.20877503,0.0004932,120]
[357569330,1744181381072,-153.20877503,0.0004932,120]
[357569331,1744181381110,-153.2,0.0004932,120]
[357569332,1744181381147,-206.97322384,0.00049999,120]
[357569333,1744181381185,-1915102.32185071,0.0005,120]
[357569334,1744181381222,-1000000.0,0.0005,120]
[357569335,1744181381260,-82917.87201446,0.0005,120]
[357569336,1744181383924,-500.0,0.00049999,120]
[357569337,1744181383963,-500.0,0.00049999,120]
[357569338,1744181384002,-500.0,0.00049999,120]
[357569339,1744181384041,-500.0,0.00049999,120]
[357569340,1744181384086,-500.0,0.00049999,120]
[357569341,1744181384125,-500.0,0.00049999,120]
[357569342,1744181384163,-500.0,0.00049999,120]
[357569343,1744181384207,-500.0,0.00049999,120]
[357569344,1744181384247,-500.0,0.00049999,120]
[357569345,1744181384285,-500.0,0.00049999,120]
[357569346,1744181384325,-500.0,0.00049999,120]
[357569347,1744181384367,-500.0,0.00049999,120]
[357569348,1744181384407,-500.0,0.00049999,120]
[357569349,1744181384448,-500.0,0.00049999,120]
[357569350,1744181384488,-500.0,0.00049999,120]
[357569351,1744181384529,-500.0,0.00049999,120]
[357569352,1744181384569,-500.0,0.00049999,120]
[357569353,1744181384699,-170.47407006,0.00049999,120]
[357569354,1744181384744,-500.0,0.00049999,120]
[357569355,1744181384790,-500.0,0.00049999,120]
[357569356,1744181384832,-917082.12798554,0.0005,120]
[357569357,1744181384871,-162.23741016,0.0005,30]
[357569358,1744181384909,-61618.52004511,0.0005,30]
[357569359,1744181384947,-250.0,0.0005,120]
[357569361,1744181384990,-250.0,0.0005,120]
[357569363,1744181385029,-250.0,0.0005,120]
[357569364,1744181385067,-250.0,0.0005,120]
[357569365,1744181385112,-250.0,0.0005,120]
[357569366,1744181385151,-250.0,0.0005,120]
[357569367,1744181385193,-250.0,0.0005,120]
[357569368,1744181385234,-277.3,0.0005,120]
[357569369,1744181385275,-500.0,0.0005,120]
[357569370,1744181385313,-500.0,0.0005,120]
[357569371,1744181385352,-333.25201199,0.0005,120]
[357569372,1744181385394,-150.0,0.00050245,120]
[357569373,1744181385434,-500.0,0.0005041,120]
[357569374,1744181385477,-1000000.0,0.000505,120]
[357569375,1744181385517,-1000000.0,0.000505,120]
[357569376,1744181385558,-150.0,0.00050855,120]
[357569377,1744181385596,-500.0,0.00050958,120]
[357569378,1744181385638,-1800.0,0.00051,52]
[357569379,1744181385676,-1021.39766654,0.00051,90]
[357569380,1744181385714,-3984.6908106,0.00051,120]
[357569381,1744181392556,-1996015.3091894,0.00051,120]
[357569382,1744181392597,-1000000.0,0.00051,120]
[357569383,1744181392634,-3984.6908106,0.00051,30]
[357569384,1744181395965,-57633.82923451,0.00051,30]
[357569385,1744181396006,-154.45,0.0005137,120]
[357569386,1744181396047,-1000.0,0.000515,120]
[357569387,1744181396091,-1000000.0,0.000515,120]
[357569388,1744181396132,-900000.0,0.000515,120]
[357569389,1744181396171,-500.0,0.00051506,120]
[357569390,1744181396209,-5567.0,0.000516,120]
[357569391,1744181396247,-3545.14,0.000516,120]
[357569392,1744181396288,-150.0,0.00051622,120]
[357569393,1744181396326,-302.26031392,0.00051635,120]
[357569394,1744181396372,-156.68,0.000517,51]
[357569395,1744181396416,-156.68,0.000517,51]
[357569396,1744181396462,-156.68,0.000517,51]
[357569397,1744181396506,-156.68,0.000517,51]
[357569398,1744181396553,-156.68,0.000517,51]
[357569399,1744181396598,-156.68,0.000517,51]
[357569400,1744181396644,-156.68,0.000517,51]
[357569401,1744181396972,-156.68,0.000517,51]
[357569402,1744181397016,-156.68,0.000517,51]
[357569403,1744181397058,-156.68,0.000517,51]
[357569404,1744181397102,-156.68,0.000517,51]
[357569405,1744181397148,-156.68,0.000517,51]
[357569406,1744181397192,-156.68,0.000517,51]
[357569407,1744181397236,-156.68,0.000517,51]
[357569408,1744181397279,-156.68,0.000517,51]
[357569409,1744181397320,-156.68,0.000517,51]
[357569410,1744181397362,-156.68,0.000517,51]
[357569411,1744181397404,-156.68,0.000517,51]
[357569412,1744181397445,-156.68,0.000517,51]
[357569413,1744181397487,-156.68,0.000517,51]
[357569414,1744181397530,-156.68,0.000517,51]
[357569415,1744181397572,-156.68,0.000517,51]
[357569416,1744181397614,-156.68,0.000517,51]
[357569417,1744181397655,-156.68,0.000517,51]
[357569418,1744181397692,-500.0,0.00051767,60]
[357569419,1744181397728,-186.03148854,0.000519,120]
[357569420,1744181397764,-37135.08619291,0.00052,120]
[357569421,1744181397803,-1800.0,0.00052,53]
[357569422,1744181397839,-700.0,0.00052,120]
[357569423,1744181397875,-43168.0,0.00052,120]
[357569424,1744181397911,-209.00174802,0.00052,30]
[357569425,1744181397950,-14960.87,0.00052,120]
[357569426,1744181397995,-928728.0110221,0.00052,120]
[357569427,1744181400698,-500.0,0.00049999,120]
[357569428,1744181400740,-400.0,0.00049999,120]
[357569429,1744181400783,-500.0,0.00049999,120]
[357569430,1744181400825,-1071271.9889779,0.00052,120]
[357569431,1744181400867,-1000000.0,0.00052,120]
[357569432,1744181400906,-500.0,0.00052041,60]
[357569433,1744181400945,-500.0,0.00052054,120]
[357569434,1744181400986,-999.0,0.00052054,120]
[357569435,1744181401024,-209.0,0.0005228,30]
[357569436,1744181401063,-500.0,0.00052315,90]
[357569437,1744181401106,-500000.0,0.000525,120]
[357569438,1744181401145,-12160.0,0.000525,90]
[357569439,1744181401187,-500.0,0.00052589,90]
[357569441,1744181401224,-500.0,0.00052602,120]
[357569442,1744181401264,-564.96,0.00052863,90]
[357569443,1744181401305,-1800.0,0.00053,54]
[357569444,1744181401345,-409095.0510221,0.00053,120]
[357569445,1744181405294,-500.0,0.0005,120]
[357569446,1744181405339,-1590904.9489779,0.00053,120]
[357569447,1744181405387,-1000000.0,0.00053,120]
[357569448,1744181405431,-150.0,0.00053134,120]
[357569449,1744181405474,-632.71142853,0.0005315,120]
[357569450,1744181405517,-1223.0,0.0005335,30]
[357569451,1744181405565,-500.0,0.00053424,30]
[357569452,1744181405606,-150.0,0.00053431,120]
[357569453,1744181405649,-229.38378,0.000535,120]
[357569454,1744181405690,-163.49,0.00053584,120]
[357569455,1744181405731,-20135.06861026,0.0005379,120]
[357569456,1744181405772,-247.99,0.000538,120]
[357569457,1744181405814,-232.5,0.000538,120]
[357569458,1744181405853,-209.0,0.0005384,30]
[357569459,1744181405900,-204.0,0.0005384,30]
[357569460,1744181405938,-152.77530792,0.00053898,120]
[357569461,1744181405976,-1223.0,0.000539,30]
[357569462,1744181406016,-500.0,0.00053972,32]
[357569463,1744181406053,-1000.0,0.00053998,120]
[357569464,1744181406093,-1001.5,0.00053998,120]
[357569465,1744181406133,-1000.0,0.00053999,120]
[357569466,1744181406174,-289.08049852,0.00054,120]
[357569467,1744181406213,-1800.0,0.00054,55]
[357569468,1744181406252,-2003.50624811,0.00054,120]
[357569469,1744181406293,-375548.04514876,0.00054,120]
[357569470,1744181409894,-692.52,0.000419,60]
[357569471,1744181410015,-692.52,0.000435,60]
[357569472,1744181410104,-692.52,0.000458,60]
[357569473,1744181410149,-692.52,0.000488,60]
[357569474,1744181410199,-258.78391867,0.0005,120]
[357569475,1744181410240,-692.52,0.000515,60]
[357569476,1744181410284,-1624451.95485124,0.00054,120]
[357569477,1744181410327,-1000000.0,0.00054,120]
[357569478,1744181410368,-700.0,0.00054,39]
[357569479,1744181410408,-150.0,0.00054,30]
[357569480,1744181410451,-150.0,0.00054172,120]
[357569481,1744181410490,-370826.66123009,0.0005433,30]
[357569482,1744181413988,-692.52,0.000529,60]
[357569483,1744181414031,-33502.97086441,0.0005433,30]
[357569484,1744181414070,-150.0,0.0005433,30]
[357569485,1744181414114,-177.0,0.0005437,120]
[357569486,1744181414154,-250000.0,0.000544,30]
[357569487,1744181414195,-1223.0,0.0005445,30]
[357569488,1744181414237,-500.0,0.0005452,34]
[357569489,1744181414277,-908.68032319,0.00054693,30]
[357569490,1744181414318,-1000.0,0.00054794,120]
[357569491,1744181414357,-1000.0,0.00054794,120]
[357569492,1744181414398,-1000.0,0.00054794,120]
[357569493,1744181414441,-1000.0,0.00054794,120]
[357569494,1744181414481,-539.13133134,0.00054794,120]
[357569495,1744181414522,-999.0,0.00054794,120]
[357569496,1744181415170,150.0,0.0005437,120]
[357569497,1744181415764,150.0,0.000544,30]
[357569498,1744181416358,150.0,0.0005445,30]
[357569499,1744181417945,255.42849378,0.00052584,120]
[357569506,1744181432403,-300.0,0.00020999,2]
[357569507,1744181432412,-3555.75,0.00021,2]
[357569508,1744181432424,-1818.0785068,0.00021,2]
[357569509,1744181432473,-691.65894273,0.00021,2]
[357569510,1744181432484,-15148.47144214,0.00021,2]
[357569511,1744181432494,-300.0,0.00021,2]
[357569512,1744181432504,-420.0,0.00022842,2]
[357569513,1744181432514,-250.0,0.000231,2]
[357569514,1744181432523,-250.0,0.000231,2]
[357569515,1744181432533,-250.0,0.000231,2]
[357569516,1744181432542,-1286.0,0.00024793,2]
[357569517,1744181432552,-574.0,0.00024793,2]
[357569518,1744181432561,-2044.0,0.00024793,2]
[357569519,1744181432571,-1326.0,0.00024793,2]
[357569520,1744181432580,-1278.0,0.00024794,2]
[357569521,1744181432589,-909.0,0.00024794,2]
[357569522,1744181432599,-587.0,0.00024847,2]
[357569523,1744181432608,-2257.84471038,0.00024892,2]
[357569524,1744181432617,-150.99,0.00024892,2]
[357569525,1744181432626,-791.0,0.00024893,2]
[357569526,1744181432636,-1436.0,0.00024893,2]
[357569527,1744181432645,-4143.0,0.00024893,2]
[357569528,1744181432655,-4648.69384746,0.00024893,2]
[357569529,1744181432697,-4790.79615254,0.00024893,2]
[357569530,1744181432707,-544.0,0.00024893,2]
[357569531,1744181432716,-268.911,0.00024893,2]
[357569532,1744181432726,-2003.80955289,0.00024893,2]
[357569533,1744181432742,-300.96,0.00024893,2]
[357569534,1744181432753,-335.58132348,0.00024893,2]
[357569537,1744181432804,-1317.64912363,0.00024893,2]
[357569539,1744181432813,-852.0,0.00024893,2]
[357569541,1744181432823,-1157.806,0.00024893,2]
[357569542,1744181433063,-2495.93705377,0.00025304,2]
[357569543,1744181433073,-1138.24,0.00025304,5]
[357569544,1744181433083,-150.99,0.00025304,2]
[357569545,1744181433093,-999.99,0.00025304,2]
[357569546,1744181433107,-880.76999051,0.00025304,2]
[357569547,1744181433121,-1305.0,0.00025304,2]
[357569548,1744181433132,-4854.43000949,0.00025304,2]
[357569549,1744181433143,-200.0,0.00025834,7]
[357569550,1744181433154,-1163.53,0.00026372,5]
[357569551,1744181433164,-313.15,0.00026849,2]
[357569552,1744181433174,-823.0,0.00027028,2]
[357569553,1744181433185,-500.0,0.00027397,2]
[357569554,1744181433195,-65.26189282,0.00027397,2]
[357569556,1744181438044,-198.44169239,0.00053794,120]
[357569557,1744181438085,-921685.16818557,0.000548,120]
[357569558,1744181438128,-1000.0,0.00054999,120]
[357569560,1744181438178,-600.0,0.00055,120]
[357569561,1744181438218,-1000.0,0.00055,30]
[357569562,1744181438256,-1211.0,0.00055,45]
[357569563,1744181438297,-1024.132495,0.00055,120]
[357569564,1744181438336,-44590.21,0.00055,120]
[357569565,1744181438378,-1000137.83812811,0.00055,120]
[357569566,1744181438419,-1028553.20949893,0.00055,120]
[357569567,1744181438502,-384.57,0.00027397,2]
[357569837,1744181441553,-971446.79050107,0.00055,120]
[357569843,1744181441597,-1000000.0,0.00055,120]
[357569848,1744181441637,-150.5795842,0.00055,50]
[357569853,1744181441676,-1223.0,0.00055,30]
[357569858,1744181441715,-493.5568778,0.00055,30]
[357569863,1744181441755,-232.54258904,0.00055,120]
[357569868,1744181441793,-500.0,0.00055068,36]
[357569874,1744181441833,-210.0,0.0005541,30]
[357569875,1744181441872,-209.0,0.0005541,30]
[357569876,1744181441911,-204.0,0.0005541,30]
[357569880,1744181441953,-1223.0,0.0005555,30]
[357569885,1744181441996,-500.0,0.00055616,38]
[357569891,1744181442043,-156.68,0.000557,57]
[357569897,1744181442090,-156.68,0.000557,57]
[357569903,1744181442141,-156.68,0.000557,57]
[357569908,1744181442184,-156.68,0.000557,57]
[357569914,1744181442230,-156.68,0.000557,57]
[357569920,1744181442275,-156.68,0.000557,57]
[357569925,1744181442319,-156.68,0.000557,57]
[357569931,1744181442367,-156.68,0.000557,57]
[357569937,1744181442414,-156.68,0.000557,57]
[357569943,1744181442461,-156.68,0.000557,57]
[357569951,1744181442520,-156.68,0.000557,57]
[357569957,1744181442570,-156.68,0.000557,57]
[357569963,1744181442618,-156.68,0.000557,57]
[357569969,1744181442666,-156.68,0.000557,57]
[357569975,1744181442713,-156.68,0.000557,57]
[357569981,1744181442760,-156.68,0.000557,57]
[357569987,1744181442807,-156.68,0.000557,57]
[357569993,1744181442853,-156.68,0.000557,57]
[357569999,1744181442899,-156.68,0.000557,57]
[357570004,1744181442942,-156.68,0.000557,57]
[357570010,1744181442986,-156.68,0.000557,57]
[357570016,1744181443031,-156.68,0.000557,57]
[357570022,1744181443076,-156.68,0.000557,57]
[357570027,1744181443122,-156.68,0.000557,57]
[357570032,1744181443164,-313.15,0.00055833,120]
[357570040,1744181443208,-150.0,0.00055921,120]
[357570045,1744181443248,-150.0,0.00055942,120]
[357570054,1744181443289,-995.18583339,0.00055999,30]
[357570059,1744181443331,-600.0,0.00056,120]
[357570064,1744181443370,-680.0,0.00056,120]
[357570070,1744181443410,-43168.0,0.00056,120]
[357570074,1744181443454,-973790.8746145,0.00056,120]
[357570415,1744181446852,-0.41529268,0.00027397,2]
[357570419,1744181446875,-8.56564249,0.00027397,2]
[357570453,1744181447206,-41.18717201,0.00027397,2]
[357570455,1744181447215,-176.4831131,0.00027397,2]
[357570457,1744181447225,-500.0,0.00027397,2]
[357570459,1744181447234,-186.27590145,0.00027397,2]
[357570461,1744181447243,-160.04,0.00027417,2]
[357570487,1744181447473,-1284.0,0.00027793,2]
[357570489,1744181447483,-2042.0,0.00027793,2]
[357570491,1744181447493,-1324.0,0.00027793,2]
[357570493,1744181447502,-1276.0,0.00027794,2]
[357570495,1744181447511,-98.67930932,0.00027794,2]
[357570497,1744181447523,-285.33943232,0.00027794,2]
[357570644,1744181449171,-1666.478871,0.00052,120]
[357570650,1744181449218,-1666.478871,0.000525,120]
[357570655,1744181449263,-1666.478871,0.00053,120]
[357570661,1744181449309,-1666.478871,0.00054,120]
[357570666,1744181449350,-1666.478871,0.000544,120]
[357570671,1744181449390,-350.0,0.00055,120]
[357570674,1744181449433,-1026209.1253855,0.00056,120]
[357570677,1744181449481,-1000000.0,0.00056,120]
[357570680,1744181449523,-1223.0,0.000561,30]
[357570683,1744181449567,-500.0,0.00056164,40]
[357570686,1744181449610,-150.0,0.00056445,120]
[357570690,1744181449649,-154.45,0.00056507,120]
[357570693,1744181449689,-1223.0,0.0005665,30]
[357570697,1744181449733,-500.0,0.00056712,42]
[357570701,1744181449772,-210.0,0.0005697,30]
[357570705,1744181449813,-209.0,0.0005697,30]
[357570708,1744181449852,-204.0,0.0005697,30]
[357570712,1744181449895,-960735.0302595,0.00057,120]
[357570987,1744181453206,-1666.478871,0.00052,120]
[357570988,1744181453252,-1666.478871,0.000525,120]
[357570989,1744181453295,-1666.478871,0.00053,120]
[357570990,1744181453339,-1666.478871,0.00054,120]
[357570991,1744181453632,-1666.478871,0.000544,120]
[357570993,1744181453676,-1666.478871,0.00055,120]
[357570994,1744181453720,-1666.478871,0.00055,120]
[357570995,1744181453762,-1666.478871,0.00055,120]
[357570996,1744181453805,-1039264.9697405,0.00057,120]
[357570997,1744181453847,-1000000.0,0.00057,120]
[357570998,1744181453887,-150.0,0.00057237,120]
[357570999,1744181453927,-500.0,0.0005726,44]
[357571000,1744181453967,-150.0,0.00057276,120]
[357571001,1744181454006,-271.2861916,0.000573,30]
[357571002,1744181454045,-150.0,0.00057324,120]
[357571003,1744181454085,-999.0,0.00057534,120]
[357571004,1744181454149,1666.478879,0.00055,120]
[357571005,1744181477593,-151.0,0.00052,120]
[357571006,1744181477634,-151.0,0.000525,120]
[357571007,1744181477673,-151.0,0.00053,120]
[357571008,1744181477714,-151.0,0.00054,120]
[357571009,1744181477755,-500.0,0.00057808,46]
[357571010,1744181477793,-200000.0,0.00058,30]
[357571011,1744181477832,-202.872412,0.00058,120]
[357571012,1744181477871,-2000000.0,0.00058,120]
[357571013,1744181477911,-798693.127588,0.00058,120]
[357571014,1744181481150,-151.0,0.00052,120]
[357571015,1744181481192,-151.0,0.000525,120]
[357571016,1744181481233,-151.0,0.00053,120]
[357571017,1744181481276,-151.0,0.00054,120]
[357571018,1744181481319,-151.0,0.000544,120]
[357571019,1744181481366,-201306.872412,0.00058,120]
[357571020,1744181481405,-250.0,0.00058,120]
[357571021,1744181481451,-163.49,0.00058062,120]
[357571022,1744181481495,-500.0,0.00058356,48]
[357571023,1744181481534,-210.0,0.0005854,30]
[357571024,1744181481575,-209.0,0.0005854,30]
[357571025,1744181481614,-204.0,0.0005854,30]
[357571026,1744181481659,-150.0,0.00058562,120]
[357571027,1744181481700,-150.0,0.00058591,120]
[357571028,1744181481742,-199548.0,0.0005888,60]
[357571029,1744181481786,-500.0,0.00058904,50]
[357571030,1744181481828,-473.0,0.00059,120]
[357571031,1744181481868,-2261.02423181,0.00059,120]
[357571032,1744181481908,-327.0,0.00059,120]
[357571033,1744181481949,-2000000.0,0.00059,120]
[357571034,1744181481992,-592992.61335619,0.00059,120]
[357571035,1744181485763,-151.0,0.00055,120]
[357571036,1744181485802,-151.0,0.00055,120]
[357571037,1744181485840,-1000.0,0.00056,120]
[357571038,1744181485880,-151.0,0.00058,120]
[357571039,1744181485921,-407007.38664381,0.00059,120]
[357571040,1744181485960,-250.0,0.00059,120]
[357571041,1744181485999,-692.52,0.00059,60]
[357571042,1744181486035,-151.0,0.00059,120]
[357571043,1744181486074,-2000.0,0.00059234,60]
[357571044,1744181486358,-500.0,0.00059452,52]
[357571045,1744181486396,-700.0,0.00059479,41]
[357571046,1744181486439,-156.68,0.000598,60]
[357571047,1744181486482,-156.68,0.000598,60]
[357571048,1744181486525,-156.68,0.000598,60]
[357571049,1744181486566,-156.68,0.000598,60]
[357571050,1744181486610,-156.68,0.000598,60]
[357571051,1744181486651,-156.68,0.000598,60]
[357571052,1744181486695,-156.68,0.000598,60]
[357571053,1744181486751,-156.68,0.000598,60]
[357571054,1744181486796,-156.68,0.000598,60]
[357571055,1744181486841,-156.68,0.000598,60]
[357571056,1744181486884,-156.68,0.000598,60]
[357571057,1744181486929,-156.68,0.000598,60]
[357571058,1744181486973,-156.68,0.000598,60]
[357571059,1744181487019,-156.68,0.000598,60]
[357571060,1744181487065,-156.68,0.000598,60]
[357571061,1744181487112,-156.68,0.000598,60]
[357571062,1744181487155,-8999.99999901,0.00059876,31]
[357571063,1744181487197,-305.0,0.000599,120]
[357571064,1744181487239,-1000.0,0.00059998,120]
[357571065,1744181487279,-1000.0,0.00059999,120]
[357571066,1744181487319,-500.0,0.00059999,54]
[357571067,1744181487357,-200.0,0.0006,120]
[357571068,1744181487397,-1000.0,0.0006,120]
[357571069,1744181487436,-260.0,0.0006,120]
[357571070,1744181487476,-533.0,0.0006,120]
[357571071,1744181487516,-500.0,0.0006,120]
[357571072,1744181487558,-600.0,0.0006,120]
[357571073,1744181487598,-508.0,0.0006,120]
[357571074,1744181487639,-43168.0,0.0006,120]
[357571075,1744181487677,-1027.0,0.0006,60]
[357571076,1744181487718,-518.86421788,0.0006,120]
[357571077,1744181487758,-1552.85088315,0.0006,120]
[357571078,1744181487797,-153.21841743,0.0006,120]
[357571079,1744181487835,-634.92999958,0.0006,120]
[357571080,1744181487875,-513.43527437,0.0006,120]
[357571081,1744181487913,-1000.0,0.0006,120]
[357571082,1744181487955,-2000000.0,0.0006,120]
[357571083,1744181487998,-520764.91456477,0.0006,120]
[357571084,1744181492920,-211.024328,0.00058,120]
[357571085,1744181492966,-479235.08543523,0.0006,120]